lending/lending_fUSD_20260209
["ID","MTS","AMOUNT","RATE_DAILY","PERIOD"]
[404840036,1770613842022,-359.71184585,0.00043286,30]
[404840037,1770613842034,-1000.0,0.00043288,30]
[404840038,1770613842047,-3500.0,0.00043288,10]
[404840039,1770613842058,-6800.0,0.000433,15]
[404840040,1770613842069,-518.0,0.00043306,2]
[404840041,1770613842080,-1079.4,0.00043316,120]
[404840042,1770613842091,-150.0,0.00043344,30]
[404840043,1770613842102,-1300.0,0.000434,15]
[404840044,1770613842114,-2000.0,0.000434,2]
[404840045,1770613842125,-500.0,0.0004345,30]
[404840046,1770613842136,-500.0,0.0004345,60]
[404840047,1770613842147,-500.0,0.0004345,60]
[404840048,1770613842158,-500.0,0.0004345,60]
[404840049,1770613842168,-504.13704332,0.0004345,60]
[404840050,1770613842180,-168.0,0.0004347,2]
[404840051,1770613842191,-41967.0,0.00043481,30]
[404840052,1770613842202,-648.57995332,0.000435,120]
[404840053,1770613842213,-1300.0,0.000435,15]
[404840055,1770613842224,-1079.4,0.00043514,120]
[404840056,1770613842235,-266.5,0.00043523,14]
[404840057,1770613842246,-1000.0,0.00043562,30]
[404840058,1770613842256,-168.0,0.00043598,2]
[404840059,1770613842267,-211.45756918,0.000436,120]
[404840060,1770613842278,-200.0,0.000436,120]
[404840061,1770613842289,-1300.0,0.000436,15]
[404840062,1770613842301,-154.0,0.000436,120]
[404840063,1770613842312,-300.091231,0.00043675,118]
[404840064,1770613842323,-159.9,0.00043683,14]
[404840065,1770613842335,-1041.97750413,0.0004369,120]
[404840066,1770613842346,-316.68272132,0.000437,120]
[404840067,1770613842357,-1300.0,0.000437,15]
[404840068,1770613842369,-1079.4,0.00043712,120]
[404840069,1770613842380,-165.2201396,0.00043715,120]
[404840070,1770613842391,-1010.8532329,0.00043735,15]
[404840071,1770613842402,-533.16956705,0.0004377,120]
[404840072,1770613842413,-500.0,0.00043773,10]
[404840073,1770613842424,-163.55316756,0.00043773,10]
[404840074,1770613842435,-500.0,0.00043773,8]
[404840075,1770613842447,-163.32665534,0.00043773,10]
[404840076,1770613842458,-500.0,0.00043773,10]
[404840077,1770613842471,-500.0,0.00043773,10]
[404840078,1770613842482,-574.77684234,0.00043773,10]
[404840079,1770613842493,-500.0,0.00043773,10]
[404840080,1770613842504,-500.0,0.00043773,10]
[404840081,1770613842516,-500.0,0.00043773,10]
[404840082,1770613842527,-500.0,0.00043773,10]
[404840083,1770613842539,-500.0,0.00043773,10]
[404840084,1770613842550,-161.72727543,0.00043773,2]
[404840085,1770613842561,-500.0,0.00043773,10]
[404840086,1770613842571,-500.0,0.00043773,7]
[404840087,1770613842583,-500.0,0.00043773,10]
[404840088,1770613842595,-160.70763868,0.00043773,10]
[404840089,1770613842606,-307.81141901,0.00043773,10]
[404840090,1770613842617,-208.68091653,0.00043773,10]
[404840091,1770613842628,-500.0,0.00043773,10]
[404840092,1770613842639,-500.0,0.00043773,10]
[404840093,1770613842649,-500.0,0.00043773,10]
[404840094,1770613842660,-500.0,0.00043773,10]
[404840095,1770613842670,-266.02436079,0.00043773,8]
[404840096,1770613842681,-500.0,0.00043773,3]
[404840097,1770613842691,-500.0,0.00043773,10]
[404840098,1770613842702,-160.46433522,0.00043773,10]
[404840099,1770613842713,-500.0,0.00043773,10]
[404840100,1770613842723,-500.0,0.00043773,10]
[404840101,1770613842734,-500.0,0.00043773,10]
[404840102,1770613842746,-500.0,0.00043773,10]
[404840103,1770613842970,-500.0,0.00043773,10]
[404840104,1770613842993,-500.0,0.00043773,10]
[404840105,1770613843006,-500.0,0.00043773,10]
[404840106,1770613843016,-500.0,0.00043773,10]
[404840107,1770613843026,-500.0,0.00043773,10]
[404840108,1770613843036,-500.0,0.00043773,10]
[404840109,1770613843047,-500.0,0.00043773,10]
[404840110,1770613843057,-157.74428972,0.00043773,10]
[404840111,1770613843067,-160.22890583,0.00043773,10]
[404840112,1770613843076,-182.9294021,0.00043773,10]
[404840113,1770613843085,-500.82285468,0.00043773,10]
[404840114,1770613843094,-160.39302496,0.00043773,10]
[404840116,1770613843103,-500.0,0.00043773,10]
[404840117,1770613843112,-500.0,0.00043773,10]
[404840118,1770613843121,-160.40758038,0.00043773,10]
[404840119,1770613843130,-500.62894029,0.00043773,10]
[404840120,1770613843139,-500.0,0.00043773,10]
[404840121,1770613843148,-500.0,0.00043773,10]
[404840123,1770613843158,-161.44985994,0.00043773,10]
[404840125,1770613843169,-161.64701546,0.00043773,5]
[404840126,1770613843179,-500.0,0.00043773,10]
[404840127,1770613843188,-500.0,0.00043773,10]
[404840128,1770613843198,-160.36847947,0.00043773,10]
[404840129,1770613843210,-500.0,0.00043773,10]
[404840130,1770613843220,-500.0,0.00043773,10]
[404840131,1770613843230,-162.16917095,0.00043773,10]
[404840132,1770613843241,-500.0,0.00043773,10]
[404840133,1770613843251,-500.0,0.00043773,10]
[404840134,1770613843262,-500.0,0.00043773,10]
[404840135,1770613843272,-500.0,0.00043773,10]
[404840136,1770613843281,-334.07299723,0.00043773,10]
[404840137,1770613843291,-500.0,0.00043773,10]
[404840138,1770613843300,-336.84619404,0.00043773,10]
[404840139,1770613843310,-500.0,0.00043773,10]
[404840140,1770613843319,-500.0,0.00043773,10]
[404840141,1770613843328,-162.34170443,0.00043773,2]
[404840142,1770613843338,-309.71303506,0.00043773,10]
[404840143,1770613843347,-209.12042357,0.00043773,10]
[404840144,1770613843357,-500.0,0.00043773,10]
[404840145,1770613843366,-500.0,0.00043773,5]
[404840146,1770613843376,-500.0,0.00043773,10]
[404840147,1770613843384,-169.95855216,0.00043773,10]
[404840148,1770613843394,-510.05803052,0.00043773,10]
[404840149,1770613843404,-264.49905291,0.00043773,10]
[404840150,1770613843414,-162.90649978,0.00043773,2]
[404840151,1770613843425,-500.0,0.00043773,10]
[404840152,1770613843435,-166.16057296,0.00043773,10]
[404840153,1770613843446,-501.2745488,0.00043773,10]
[404840154,1770613843455,-513.08347709,0.00043773,10]
[404840155,1770613843470,-449.68415735,0.00043773,10]
[404840156,1770613843480,-500.0,0.00043773,10]
[404840157,1770613843489,-500.0,0.00043773,10]
[404840158,1770613843500,-500.0,0.00043773,10]
[404840159,1770613843510,-500.41066927,0.00043773,10]
[404840160,1770613843520,-500.0,0.00043773,10]
[404840161,1770613843529,-500.0,0.00043773,10]
[404840162,1770613843539,-472.16943484,0.00043773,10]
[404840163,1770613843549,-1000.0,0.000438,30]
[404840164,1770613843558,-237.39446606,0.000438,120]
[404840165,1770613843567,-1912.0,0.000438,15]
[404840166,1770613843576,-168.0,0.00043808,2]
[404840167,1770613843585,-1999.0,0.00043835,120]
[404840168,1770613843594,-170.70857607,0.00043836,120]
[404840169,1770613843603,-4000.0,0.00043836,10]
[404840170,1770613843612,-1000.0,0.00043836,30]
[404840171,1770613843622,-150.0,0.00043836,120]
[404840172,1770613843631,-150.0,0.00043891,120]
[404840173,1770613843641,-150.0,0.00043899,30]
[404840174,1770613843654,-500.0,0.00043907,60]
[404840175,1770613843664,-500.0,0.00043907,60]
[404840176,1770613843675,-41967.0,0.00043925,30]
[404840177,1770613843685,-8337.0,0.00043928,7]
[404840178,1770613843695,-150.0,0.00043946,120]
[404840179,1770613843706,-920.82030181,0.00043946,120]
[404840180,1770613843715,-1089.27412783,0.00043987,120]
[404840181,1770613843724,-1000.0,0.00044,120]
[404840182,1770613843733,-247.31803698,0.00044,120]
[404840183,1770613843742,-13726.50808153,0.00044,4]
[404840184,1770613843751,-7814.7,0.00044,14]
[404840185,1770613843761,-266.76727611,0.00044,120]
[404840186,1770613843772,-201.07511,0.0004401,120]
[404840187,1770613843781,-201.07511,0.0004401,120]
[404840188,1770613843791,-166.66,0.00044012,2]
[404840189,1770613843800,-622.0,0.00044074,15]
[404840190,1770613843810,-150.0,0.00044084,120]
[404840191,1770613843820,-828.0,0.00044088,16]
[404840192,1770613843830,-726.24228816,0.000441,30]
[404840193,1770613843841,-500.0,0.00044109,120]
[404840194,1770613843853,-500.0,0.00044109,120]
[404840195,1770613843862,-500.0,0.00044109,120]
[404840196,1770613843871,-500.0,0.00044109,120]
[404840197,1770613843881,-500.0,0.00044109,120]
[404840198,1770613843892,-500.0,0.00044109,120]
[404840199,1770613843902,-500.0,0.00044109,120]
[404840200,1770613843913,-200.99075757,0.00044109,120]
[404840201,1770613843923,-1999.0,0.0004411,30]
[404840202,1770613843932,-168.0,0.00044133,7]
[404840203,1770613843941,-1935.65704914,0.00044162,2]
[404840204,1770613843952,-373.0,0.00044184,15]
[404840205,1770613843962,-2000.0,0.00044233,3]
[404840206,1770613843972,-2000.0,0.00044233,3]
[404840207,1770613843982,-8678.01571523,0.00044256,2]
[404840208,1770613843994,-1843.84672819,0.00044256,2]
[404840209,1770613844005,-367.26757822,0.00044256,2]
[404840210,1770613844014,-3349.5969184,0.00044256,2]
[404840211,1770613844024,-3349.5969184,0.00044271,2]
[404840212,1770613844034,-150.0,0.00044273,7]
[404840213,1770613844044,-150.0,0.00044273,10]
[404840214,1770613844053,-3349.5969184,0.00044285,2]
[404840215,1770613844063,-250.0,0.00044291,2]
[404840216,1770613844073,-1412.0,0.00044291,2]
[404840217,1770613844082,-616.0,0.00044291,2]
[404840218,1770613844092,-3485.0,0.00044291,2]
[404840219,1770613844101,-1340.031,0.00044291,2]
[404840220,1770613844111,-150.0,0.00044291,2]
[404840221,1770613844121,-1287.765,0.00044291,2]
[404840222,1770613844130,-1215.019,0.00044291,2]
[404840223,1770613844139,-918.0,0.00044291,2]
[404840224,1770613844151,-412.0,0.00044291,2]
[404840225,1770613844161,-2448.0,0.00044291,2]
[404840226,1770613844170,-3256.0,0.00044291,2]
[404840227,1770613844180,-8678.01571523,0.00044293,2]
[404840228,1770613844189,-1843.84672817,0.00044293,2]
[404840229,1770613844199,-367.26757822,0.00044293,2]
[404840230,1770613844208,-249.0,0.00044293,15]
[404840231,1770613844217,-284.55701181,0.00044294,14]
[404840232,1770613844226,-3349.5969184,0.000443,2]
[404840233,1770613844235,-164.7,0.000443,60]
[404840234,1770613844244,-3349.5969184,0.00044314,2]
[404840235,1770613844254,-151.0,0.00044318,120]
[404840236,1770613844262,-500.0,0.0004432,120]
[404840237,1770613844272,-1000.0,0.00044321,10]
[404840238,1770613844282,-615.91139746,0.00044321,8]
[404840239,1770613844292,-1002.41623869,0.00044321,10]
[404840240,1770613844301,-795.30603948,0.00044321,10]
[404840241,1770613844310,-1000.0,0.00044321,10]
[404840242,1770613844319,-1004.10889076,0.00044321,10]
[404840243,1770613844329,-1000.0,0.00044321,10]
[404840244,1770613844339,-1000.0,0.00044321,10]
[404840245,1770613844348,-502.47211663,0.00044321,10]
[404840246,1770613844357,-502.76217536,0.00044321,10]
[404840247,1770613844368,-1000.0,0.00044321,7]
[404840248,1770613844376,-1002.46536449,0.00044321,10]
[404840249,1770613844386,-1000.0,0.00044321,10]
[404840250,1770613844395,-1000.0,0.00044321,10]
[404840251,1770613844405,-1000.0,0.00044321,10]
[404840252,1770613844414,-1000.0,0.00044321,10]
[404840253,1770613844423,-1000.0,0.00044321,3]
[404840254,1770613844434,-496.94502749,0.00044321,10]
[404840255,1770613844444,-1000.0,0.00044321,10]
[404840256,1770613844453,-1000.0,0.00044321,10]
[404840257,1770613844469,-1000.0,0.00044321,10]
[404840258,1770613844480,-1000.0,0.00044321,10]
[404840259,1770613844491,-699.03910097,0.00044321,10]
[404840260,1770613844501,-502.60120768,0.00044321,10]
[404840261,1770613844511,-395.286218,0.00044321,10]
[404840262,1770613844522,-173.76847613,0.00044321,10]
[404840263,1770613844532,-1000.0,0.00044321,10]
[404840264,1770613844549,-703.06379961,0.00044321,10]
[404840265,1770613844566,-1000.0,0.00044321,10]
[404840266,1770613844577,-1002.56444906,0.00044321,10]
[404840267,1770613844588,-1002.20409779,0.00044321,10]
[404840268,1770613844599,-501.70090979,0.00044321,10]
[404840269,1770613844609,-1000.0,0.00044321,10]
[404840270,1770613844619,-1003.00457019,0.00044321,10]
[404840271,1770613844629,-277.70929014,0.00044321,10]
[404840272,1770613844639,-1000.0,0.00044321,10]
[404840273,1770613844649,-1000.0,0.00044321,10]
[404840274,1770613844660,-377.30350255,0.00044321,10]
[404840275,1770613844671,-465.61183787,0.00044321,10]
[404840276,1770613844681,-1000.0,0.00044321,10]
[404840277,1770613844691,-350.45334001,0.00044321,10]
[404840278,1770613844700,-600.05504452,0.00044321,10]
[404840279,1770613844710,-502.87119241,0.00044321,10]
[404840280,1770613844719,-1000.0,0.00044321,10]
[404840281,1770613844729,-1003.1173232,0.00044321,10]
[404840282,1770613844739,-1002.0208216,0.00044321,5]
[404840283,1770613844749,-1000.0,0.00044321,10]
[404840284,1770613844759,-1002.48741402,0.00044321,10]
[404840285,1770613844769,-501.44969671,0.00044321,10]
[404840286,1770613844779,-1000.0,0.00044321,10]
[404840287,1770613844797,-1078.77144029,0.00044321,10]
[404840288,1770613844807,-873.10505378,0.00044321,10]
[404840289,1770613844817,-504.39613681,0.00044321,10]
[404840290,1770613844827,-156.55344811,0.00044328,15]
[404840291,1770613844836,-154.0002243,0.00044328,60]
[404840292,1770613844846,-165.2201396,0.00044329,120]
[404840293,1770613844855,-190.57454506,0.00044329,19]
[404840294,1770613844865,-1010.8532329,0.00044329,15]
[404840295,1770613844874,-8678.01571523,0.00044329,2]
[404840296,1770613844884,-1843.84672817,0.00044329,2]
[404840297,1770613844893,-3349.5969184,0.00044329,2]
[404840298,1770613844902,-367.26757822,0.00044329,2]
[404840299,1770613844911,-168.0,0.0004433,2]
[404840300,1770613844921,-151.0,0.00044353,120]
[404840301,1770613844930,-500.0,0.00044355,120]
[404840302,1770613844939,-500.0,0.00044355,120]
[404840303,1770613844948,-500.0,0.00044355,120]
[404840304,1770613844958,-500.0,0.00044355,120]
[404840305,1770613844967,-500.0,0.00044355,120]
[404840306,1770613844977,-500.0,0.00044355,120]
[404840307,1770613844986,-500.0,0.00044355,120]
[404840308,1770613844995,-500.0,0.00044355,120]
[404840309,1770613845005,-500.0,0.00044355,120]
[404840310,1770613845014,-500.0,0.00044355,120]
[404840311,1770613845024,-500.0,0.00044355,120]
[404840312,1770613845040,-141726.66314333,0.00044356,54]
[404840313,1770613845050,-500.0,0.00044356,120]
[404840314,1770613845060,-176.1819659,0.00044356,120]
[404840315,1770613845069,-500.0,0.00044356,120]
[404840316,1770613845079,-500.0,0.00044356,120]
[404840317,1770613845088,-500.0,0.00044356,120]
[404840318,1770613845097,-500.0,0.00044356,120]
[404840319,1770613845106,-510.41077862,0.00044356,120]
[404840320,1770613845116,-500.0,0.00044356,120]
[404840321,1770613845126,-500.0,0.00044356,120]
[404840322,1770613845135,-526.64284735,0.00044356,120]
[404840323,1770613845144,-500.0,0.00044356,120]
[404840324,1770613845153,-500.0,0.00044356,120]
[404840325,1770613845163,-528.55995537,0.00044356,120]
[404840326,1770613845172,-433.735203,0.00044356,120]
[404840327,1770613845182,-433.735203,0.00044356,120]
[404840328,1770613845192,-433.735203,0.00044356,120]
[404840329,1770613845202,-500.0,0.00044356,120]
[404840330,1770613845212,-514.538613,0.00044356,120]
[404840331,1770613845222,-524.90536579,0.00044356,120]
[404840332,1770613845232,-169.313027,0.00044356,120]
[404840333,1770613845243,-169.313027,0.00044356,120]
[404840334,1770613845254,-500.0,0.00044356,120]
[404840335,1770613845265,-500.0,0.00044356,120]
[404840336,1770613845274,-506.50227593,0.00044356,120]
[404840337,1770613845286,-500.0,0.00044356,120]
[404840338,1770613845295,-500.0,0.00044356,120]
[404840339,1770613845305,-500.0,0.00044356,120]
[404840340,1770613845314,-512.96914593,0.00044356,120]
[404840341,1770613845323,-500.0,0.00044356,120]
[404840342,1770613845334,-500.0,0.00044356,120]
[404840343,1770613845343,-500.0,0.00044356,120]
[404840344,1770613845353,-500.0,0.00044356,120]
[404840345,1770613845362,-500.0,0.00044356,120]
[404840346,1770613845372,-518.41944905,0.00044356,120]
[404840347,1770613845382,-500.0,0.00044356,120]
[404840348,1770613845392,-514.32829686,0.00044356,120]
[404840349,1770613845402,-500.0,0.00044356,120]
[404840350,1770613845411,-500.0,0.00044356,120]
[404840351,1770613845420,-536.58277305,0.00044356,120]
[404840352,1770613845431,-500.0,0.00044356,120]
[404840353,1770613845441,-521.99881144,0.00044356,120]
[404840354,1770613845450,-500.0,0.00044356,120]
[404840355,1770613845461,-500.0,0.00044356,120]
[404840356,1770613845471,-500.0,0.00044356,120]
[404840357,1770613845483,-500.0,0.00044356,120]
[404840358,1770613845493,-500.0,0.00044356,120]
[404840359,1770613845503,-397.48488689,0.00044356,120]
[404840360,1770613845512,-520.22488328,0.00044356,120]
[404840361,1770613845522,-500.0,0.00044356,120]
[404840362,1770613845534,-509.46719789,0.00044356,120]
[404840363,1770613845545,-513.74524147,0.00044356,120]
[404840364,1770613845555,-510.24117254,0.00044356,120]
[404840365,1770613845565,-500.0,0.00044356,120]
[404840366,1770613845575,-500.0,0.00044356,120]
[404840367,1770613845585,-500.0,0.00044356,120]
[404840368,1770613845595,-525.06137487,0.00044356,120]
[404840369,1770613845605,-511.54566046,0.00044356,120]
[404840370,1770613845616,-500.0,0.00044356,120]
[404840371,1770613845626,-500.0,0.00044356,120]
[404840372,1770613845638,-512.74234328,0.00044356,120]
[404840373,1770613845648,-500.0,0.00044356,120]
[404840374,1770613845660,-500.0,0.00044356,120]
[404840375,1770613845669,-500.0,0.00044356,120]
[404840376,1770613845679,-500.0,0.00044356,120]
[404840377,1770613845689,-500.0,0.00044356,120]
[404840378,1770613845698,-500.0,0.00044356,120]
[404840379,1770613845709,-500.0,0.00044356,120]
[404840380,1770613845718,-500.0,0.00044356,120]
[404840381,1770613845728,-500.0,0.00044356,120]
[404840382,1770613845738,-406.3004465,0.00044356,120]
[404840383,1770613845749,-500.0,0.00044356,120]
[404840384,1770613845758,-500.0,0.00044356,120]
[404840385,1770613845768,-500.0,0.00044356,120]
[404840386,1770613845779,-512.83982025,0.00044356,120]
[404840387,1770613845792,-500.0,0.00044356,120]
[404840388,1770613845801,-517.7185916,0.00044356,120]
[404840389,1770613845810,-500.0,0.00044356,120]
[404840390,1770613845819,-520.50849489,0.00044356,120]
[404840391,1770613845828,-468.20538886,0.00044356,120]
[404840392,1770613845838,-518.50913652,0.00044356,120]
[404840393,1770613845848,-502.67777324,0.00044356,120]
[404840395,1770613845858,-500.0,0.00044356,120]
[404840397,1770613845868,-500.0,0.00044356,120]
[404840398,1770613845878,-500.0,0.00044356,120]
[404840399,1770613845887,-500.0,0.00044356,120]
[404840400,1770613845896,-500.0,0.00044356,120]
[404840401,1770613845905,-464.71367867,0.00044356,120]
[404840402,1770613845914,-532.31768282,0.00044356,120]
[404840403,1770613845924,-500.0,0.00044356,120]
[404840404,1770613845934,-500.0,0.00044356,120]
[404840405,1770613845946,-500.0,0.00044356,120]
[404840406,1770613845957,-500.0,0.00044356,120]
[404840407,1770613845969,-500.0,0.00044356,120]
[404840408,1770613845979,-500.0,0.00044356,120]
[404840409,1770613845989,-500.0,0.00044356,120]
[404840410,1770613845999,-500.0,0.00044356,120]
[404840411,1770613846008,-500.0,0.00044356,120]
[404840412,1770613846019,-526.21203898,0.00044356,120]
[404840413,1770613846029,-500.0,0.00044356,120]
[404840414,1770613846040,-500.0,0.00044356,120]
[404840415,1770613846049,-514.13108584,0.00044356,120]
[404840416,1770613846059,-500.0,0.00044356,120]
[404840417,1770613846070,-500.0,0.00044356,120]
[404840418,1770613846080,-500.24711165,0.00044356,120]
[404840419,1770613846089,-500.0,0.00044356,120]
[404840420,1770613846099,-500.0,0.00044356,120]
[404840421,1770613846108,-500.0,0.00044356,120]
[404840422,1770613846117,-500.0,0.00044356,120]
[404840423,1770613846127,-500.0,0.00044356,120]
[404840424,1770613846138,-500.0,0.00044356,120]
[404840425,1770613846148,-500.0,0.00044356,120]
[404840426,1770613846159,-500.0,0.00044356,120]
[404840427,1770613846170,-500.0,0.00044356,120]
[404840428,1770613846180,-578.65326882,0.00044356,120]
[404840429,1770613846191,-500.0,0.00044356,120]
[404840430,1770613846200,-500.0,0.00044356,120]
[404840431,1770613846210,-500.0,0.00044356,120]
[404840432,1770613846221,-156.8110012,0.00044356,120]
[404840433,1770613846231,-500.0,0.00044356,120]
[404840434,1770613846242,-500.0,0.00044356,120]
[404840435,1770613846254,-522.60765471,0.00044356,120]
[404840436,1770613846263,-500.0,0.00044356,120]
[404840437,1770613846272,-500.0,0.00044356,120]
[404840438,1770613846281,-500.0,0.00044356,120]
[404840439,1770613846291,-530.42847658,0.00044356,120]
[404840440,1770613846300,-500.0,0.00044356,120]
[404840441,1770613846309,-500.0,0.00044356,120]
[404840442,1770613846319,-500.0,0.00044356,120]
[404840443,1770613846473,-500.0,0.00044356,120]
[404840444,1770613846484,-500.0,0.00044356,120]
[404840445,1770613846494,-500.0,0.00044356,120]
[404840446,1770613846505,-500.0,0.00044356,120]
[404840447,1770613846514,-503.8926021,0.00044356,120]
[404840448,1770613846523,-500.0,0.00044356,120]
[404840449,1770613846533,-512.7882234,0.00044356,120]
[404840450,1770613846545,-500.0,0.00044356,120]
[404840451,1770613846555,-500.0,0.00044356,120]
[404840452,1770613846564,-500.0,0.00044356,120]
[404840453,1770613846574,-500.0,0.00044356,120]
[404840454,1770613846583,-500.0,0.00044356,120]
[404840455,1770613846593,-500.0,0.00044356,120]
[404840456,1770613846602,-500.0,0.00044356,120]
[404840457,1770613846612,-500.0,0.00044356,120]
[404840458,1770613846622,-284.3776447,0.00044356,120]
[404840459,1770613846631,-500.0,0.00044356,120]
[404840460,1770613846640,-500.0,0.00044356,120]
[404840461,1770613846649,-500.0,0.00044356,120]
[404840462,1770613846659,-500.0,0.00044356,120]
[404840463,1770613846668,-500.0,0.00044356,120]
[404840464,1770613846678,-500.0,0.00044356,120]
[404840465,1770613846687,-500.0,0.00044356,120]
[404840466,1770613846696,-500.0,0.00044356,120]
[404840467,1770613846706,-500.0,0.00044356,120]
[404840468,1770613846716,-500.0,0.00044356,120]
[404840469,1770613846725,-500.0,0.00044356,120]
[404840470,1770613846735,-500.0,0.00044356,120]
[404840471,1770613846744,-500.0,0.00044356,120]
[404840472,1770613846753,-500.0,0.00044356,120]
[404840473,1770613846763,-500.0,0.00044356,120]
[404840474,1770613846772,-511.39153903,0.00044356,120]
[404840475,1770613846781,-500.0,0.00044356,120]
[404840476,1770613846792,-478.93283511,0.00044356,120]
[404840477,1770613846802,-500.0,0.00044356,120]
[404840478,1770613846811,-500.0,0.00044356,120]
[404840479,1770613846822,-500.0,0.00044356,120]
[404840480,1770613846831,-374.94092759,0.00044356,120]
[404840481,1770613846841,-500.0,0.00044356,120]
[404840482,1770613846852,-500.0,0.00044356,120]
[404840483,1770613846862,-500.0,0.00044356,120]
[404840484,1770613846873,-520.76274049,0.00044356,120]
[404840485,1770613846883,-500.0,0.00044356,120]
[404840486,1770613846893,-500.0,0.00044356,120]
[404840487,1770613846902,-500.0,0.00044356,120]
[404840488,1770613846912,-500.0,0.00044356,120]
[404840489,1770613846921,-500.0,0.00044356,120]
[404840490,1770613846931,-526.17574676,0.00044356,120]
[404840491,1770613846941,-500.0,0.00044356,120]
[404840492,1770613846950,-500.0,0.00044356,120]
[404840493,1770613846960,-500.0,0.00044356,120]
[404840494,1770613846971,-500.0,0.00044356,120]
[404840495,1770613846981,-517.03651279,0.00044356,120]
[404840496,1770613846991,-500.0,0.00044356,120]
[404840497,1770613847001,-500.0,0.00044356,120]
[404840498,1770613847010,-500.0,0.00044356,120]
[404840499,1770613847019,-500.0,0.00044356,120]
[404840500,1770613847029,-500.0,0.00044356,120]
[404840501,1770613847039,-500.0,0.00044356,120]
[404840502,1770613847049,-500.0,0.00044356,120]
[404840503,1770613847058,-500.0,0.00044356,120]
[404840504,1770613847067,-516.59304453,0.00044356,120]
[404840505,1770613847076,-500.0,0.00044356,120]
[404840506,1770613847086,-526.29640227,0.00044356,120]
[404840507,1770613847095,-500.0,0.00044356,120]
[404840508,1770613847106,-500.0,0.00044356,120]
[404840509,1770613847116,-511.84368572,0.00044356,120]
[404840510,1770613847125,-500.0,0.00044356,120]
[404840511,1770613847136,-500.0,0.00044356,120]
[404840512,1770613847146,-500.0,0.00044356,120]
[404840513,1770613847156,-500.0,0.00044356,120]
[404840514,1770613847166,-500.0,0.00044356,120]
[404840515,1770613847175,-500.0,0.00044356,120]
[404840516,1770613847184,-500.0,0.00044356,120]
[404840517,1770613847194,-500.0,0.00044356,120]
[404840518,1770613847205,-500.0,0.00044356,120]
[404840519,1770613847217,-519.41264155,0.00044356,120]
[404840520,1770613847227,-500.0,0.00044356,120]
[404840521,1770613847238,-500.0,0.00044356,120]
[404840522,1770613847249,-500.0,0.00044356,120]
[404840523,1770613847259,-508.99473428,0.00044356,120]
[404840524,1770613847270,-500.0,0.00044356,120]
[404840525,1770613847280,-500.0,0.00044356,120]
[404840526,1770613847291,-500.0,0.00044356,120]
[404840527,1770613847300,-500.0,0.00044356,120]
[404840528,1770613847310,-500.0,0.00044356,120]
[404840529,1770613847319,-500.0,0.00044356,120]
[404840530,1770613847330,-500.0,0.00044356,120]
[404840531,1770613847341,-358.06992125,0.00044356,120]
[404840532,1770613847353,-500.0,0.00044356,120]
[404840533,1770613847363,-508.21751822,0.00044356,120]
[404840534,1770613847374,-500.0,0.00044356,120]
[404840535,1770613847386,-500.0,0.00044356,120]
[404840536,1770613847396,-500.0,0.00044356,120]
[404840537,1770613847407,-500.0,0.00044356,120]
[404840538,1770613847416,-500.0,0.00044356,120]
[404840539,1770613847426,-500.0,0.00044356,120]
[404840540,1770613847435,-500.0,0.00044356,120]
[404840541,1770613847445,-500.0,0.00044356,120]